fUSD/lending_fUSD_20250823
["ID","MTS","AMOUNT","RATE_DAILY","PERIOD"]
[380984247,1755918643207,-1000.0,0.00013258,2]
[380984248,1755918643216,-300.0,0.00013258,2]
[380984249,1755918643225,-1000.0,0.00013258,2]
[380984250,1755918643234,-1000.0,0.00013258,2]
[380984251,1755918643243,-1000.0,0.00013258,2]
[380984252,1755918643252,-1000.0,0.00013258,2]
[380984253,1755918643262,-1000.0,0.00013258,2]
[380984254,1755918643271,-1000.0,0.00013258,2]
[380984255,1755918643281,-322.6107,0.00013258,2]
[380984256,1755918643290,-300.0,0.00013258,2]
[380984257,1755918643299,-308.67334641,0.00013258,2]
[380984258,1755918643309,-300.0,0.00013258,2]
[380984259,1755918643318,-300.0,0.00013258,2]
[380984260,1755918643327,-1000.0,0.00013258,2]
[380984261,1755918643337,-300.0,0.00013258,2]
[380984262,1755918643346,-1000.0,0.00013258,2]
[380984263,1755918643355,-151.0,0.00013258,2]
[380984264,1755918643364,-284.59292998,0.00013258,2]
[380984265,1755918643375,-300.0,0.00013258,2]
[380984266,1755918643384,-1000.0,0.00013258,2]
[380984267,1755918643394,-151.0,0.00013258,2]
[380984268,1755918643404,-300.0,0.00013258,2]
[380984269,1755918643422,-1000.0,0.00013258,2]
[380984270,1755918643437,-1000.0,0.00013258,2]
[380984271,1755918643449,-151.0,0.00013258,2]
[380984272,1755918643459,-300.0,0.00013258,2]
[380984273,1755918643468,-1000.0,0.00013258,2]
[380984274,1755918643479,-1000.0,0.00013258,2]
[380984275,1755918643488,-151.0,0.00013258,2]
[380984276,1755918643497,-300.0,0.00013258,2]
[380984277,1755918643506,-1000.0,0.00013258,2]
[380984278,1755918643515,-1000.0,0.00013258,2]
[380984279,1755918643526,-151.0,0.00013258,2]
[380984280,1755918643535,-1000.0,0.00013258,2]
[380984281,1755918643545,-1000.0,0.00013258,2]
[380984282,1755918643555,-266.12185915,0.00013258,2]
[380984283,1755918643564,-1000.0,0.00013258,2]
[380984284,1755918643573,-1000.0,0.00013258,2]
[380984285,1755918643583,-1000.0,0.00013258,2]
[380984286,1755918643592,-1000.0,0.00013258,2]
[380984287,1755918643601,-1000.0,0.00013258,2]
[380984288,1755918643611,-1000.0,0.00013258,2]
[380984289,1755918643623,-1000.0,0.00013258,2]
[380984290,1755918643632,-1000.0,0.00013258,2]
[380984291,1755918643642,-1000.0,0.00013258,2]
[380984292,1755918643651,-1000.0,0.00013258,2]
[380984293,1755918643661,-1000.0,0.00013258,2]
[380984294,1755918643670,-300.0,0.00013258,2]
[380984295,1755918643680,-151.0,0.00013258,2]
[380984296,1755918643689,-300.0,0.00013258,2]
[380984297,1755918643699,-277.35679052,0.00013258,2]
[380984298,1755918643709,-151.0,0.00013258,2]
[380984299,1755918643718,-300.0,0.00013258,2]
[380984300,1755918643728,-300.0,0.00013258,2]
[380984301,1755918643737,-300.0,0.00013258,2]
[380984302,1755918643746,-300.0,0.00013258,2]
[380984303,1755918643755,-300.0,0.00013258,2]
[380984304,1755918643765,-300.0,0.00013258,2]
[380984305,1755918643774,-346.8202695,0.00013258,2]
[380984307,1755918643784,-2351.0,0.00013275,2]
[380984308,1755918643792,-166.16,0.00013288,2]
[380984309,1755918643802,-156.587,0.00013313,2]
[380984310,1755918643811,-5591.31319997,0.00013313,2]
[380984311,1755918643820,-541.72,0.00013322,2]
[380984312,1755918643831,-311.44459864,0.00013368,2]
[380984313,1755918643840,-5798.19178837,0.00013368,2]
[380984314,1755918643849,-6012.72488454,0.00013423,2]
[380984315,1755918643859,-500.0,0.00013464,2]
[380984316,1755918643870,-256.25674878,0.00013464,2]
[380984317,1755918643879,-730.0,0.00013466,2]
[380984318,1755918643889,-2138.0,0.00013466,2]
[380984319,1755918643899,-1437.0,0.00013466,2]
[380984320,1755918643908,-6235.19570527,0.00013478,2]
[380984321,1755918643918,-216.0,0.000135,2]
[380984322,1755918643927,-5800.0,0.00013512,2]
[380984323,1755918643938,-5800.0,0.0001352,2]
[380984324,1755918643947,-151.1,0.00013521,2]
[380984325,1755918643957,-428.46,0.00013521,2]
[380984326,1755918643966,-305.63,0.00013521,2]
[380984327,1755918643975,-420.98,0.00013521,2]
[380984328,1755918643985,-429.52,0.00013521,2]
[380984329,1755918643994,-301.53,0.00013521,2]
[380984330,1755918644003,-427.06,0.00013521,2]
[380984331,1755918644012,-426.69,0.00013521,2]
[380984332,1755918644022,-5800.0,0.00013529,2]
[380984333,1755918644032,-417.44,0.00013529,2]
[380984334,1755918644041,-426.63,0.00013529,2]
[380984335,1755918644051,-303.29,0.00013529,2]
[380984336,1755918644061,-417.72,0.00013529,2]
[380984337,1755918644070,-426.39,0.00013529,2]
[380984338,1755918644080,-304.05,0.00013529,2]
[380984339,1755918644089,-418.58,0.00013529,2]
[380984340,1755918644099,-429.36,0.00013529,2]
[380984341,1755918644108,-6465.89794637,0.00013533,2]
[380984342,1755918644120,-5800.0,0.00013537,2]
[380984343,1755918644133,-429.98,0.00013538,2]
[380984344,1755918644152,-422.86,0.00013538,2]
[380984345,1755918644162,-303.5,0.00013538,2]
[380984346,1755918644172,-424.48,0.00013538,2]
[380984347,1755918644182,-6705.13617038,0.00013588,2]
[380984348,1755918644191,-300.58,0.00013598,2]
[380984349,1755918644200,-305.01,0.00013598,2]
[380984350,1755918644210,-300.45,0.00013598,2]
[380984351,1755918644220,-423.57,0.00013598,2]
[380984352,1755918644229,-422.71,0.00013598,2]
[380984353,1755918644239,-432.86,0.00013598,2]
[380984354,1755918644248,-305.91,0.00013598,2]
[380984355,1755918644258,-6953.22620868,0.00013643,2]
[380984356,1755918644268,-150.0,0.00013684,2]
[380984357,1755918644278,-961.07351863,0.00013685,2]
[380984358,1755918644288,-1224.89762178,0.00013685,2]
[380984360,1755918644297,-1488.72172494,0.00013686,2]
[380984361,1755918644307,-1752.54582809,0.00013686,2]
[380984362,1755918644316,-2016.36993124,0.00013686,2]
[380984363,1755918644325,-2280.19403439,0.00013687,2]
[380984364,1755918644335,-2544.01813755,0.00013687,2]
[380984365,1755918644344,-2807.8422407,0.00013688,2]
[380984366,1755918644353,-3071.66634385,0.00013688,2]
[380984367,1755918644363,-400.0,0.00013698,2]
[380984368,1755918644374,-518.08,0.00013698,2]
[380984369,1755918644384,-400.0,0.00013698,2]
[380984370,1755918644393,-400.0,0.00013698,2]
[380984371,1755918644402,-400.0,0.00013698,2]
[380984372,1755918644413,-400.0,0.00013698,2]
[380984373,1755918644422,-587.93,0.00013698,2]
[380984374,1755918644432,-400.0,0.00013698,2]
[380984375,1755918644442,-400.0,0.00013698,2]
[380984376,1755918644455,-400.0,0.00013698,2]
[380984377,1755918644465,-400.0,0.00013698,2]
[380984378,1755918644474,-440.02035534,0.00013698,2]
[380984379,1755918644484,-400.0,0.00013698,2]
[380984380,1755918644494,-297.19164876,0.00013698,2]
[380984381,1755918644503,-401.1120209,0.00013698,2]
[380984382,1755918644513,-620.99,0.00013698,2]
[380984383,1755918644524,-400.0,0.00013698,2]
[380984384,1755918644538,-400.0,0.00013698,2]
[380984385,1755918644548,-604.66,0.00013698,2]
[380984386,1755918644558,-400.0,0.00013698,2]
[380984387,1755918644568,-555.97,0.00013698,2]
[380984388,1755918644578,-400.0,0.00013698,2]
[380984389,1755918644590,-400.0,0.00013698,2]
[380984390,1755918644600,-400.0,0.00013698,2]
[380984391,1755918644610,-400.0,0.00013698,2]
[380984392,1755918644621,-400.0,0.00013698,2]
[380984393,1755918644630,-400.0,0.00013698,2]
[380984394,1755918644640,-400.0,0.00013698,2]
[380984395,1755918644650,-401.09289055,0.00013698,2]
[380984396,1755918644660,-402.3953413,0.00013698,2]
[380984397,1755918644670,-400.0,0.00013698,2]
[380984398,1755918644680,-541.36,0.00013698,2]
[380984399,1755918644690,-539.0497768,0.00013698,2]
[380984400,1755918644700,-619.26,0.00013698,2]
[380984401,1755918644711,-424.76,0.00013698,2]
[380984402,1755918644720,-400.0,0.00013698,2]
[380984403,1755918644730,-400.0,0.00013698,2]
[380984404,1755918644739,-400.0,0.00013698,2]
[380984405,1755918644751,-400.0,0.00013698,2]
[380984406,1755918644762,-400.0,0.00013698,2]
[380984407,1755918644771,-579.89,0.00013698,2]
[380984408,1755918644780,-400.0,0.00013698,2]
[380984409,1755918644789,-519.89,0.00013698,2]
[380984410,1755918644799,-465.57,0.00013698,2]
[380984411,1755918644809,-400.0,0.00013698,2]
[380984412,1755918644818,-400.57632326,0.00013698,2]
[380984413,1755918644827,-400.0,0.00013698,2]
[380984414,1755918644837,-400.0,0.00013698,2]
[380984415,1755918644846,-400.0,0.00013698,2]
[380984416,1755918644856,-400.0,0.00013698,2]
[380984417,1755918644865,-400.0,0.00013698,2]
[380984418,1755918644875,-400.0,0.00013698,2]
[380984419,1755918644884,-706.95,0.00013698,2]
[380984420,1755918644893,-400.0,0.00013698,2]
[380984421,1755918644903,-400.0,0.00013698,2]
[380984422,1755918644912,-400.0,0.00013698,2]
[380984423,1755918644922,-400.0,0.00013698,2]
[380984424,1755918644931,-542.87,0.00013698,2]
[380984425,1755918644941,-400.91024499,0.00013698,2]
[380984426,1755918644950,-556.53,0.00013698,2]
[380984427,1755918644960,-400.0,0.00013698,2]
[380984428,1755918644969,-400.0,0.00013698,2]
[380984429,1755918644979,-969.95,0.00013698,2]
[380984430,1755918644988,-400.0,0.00013698,2]
[380984431,1755918644998,-400.0,0.00013698,2]
[380984432,1755918645007,-402.19745256,0.00013698,2]
[380984433,1755918645016,-400.0,0.00013698,2]
[380984434,1755918645026,-400.0,0.00013698,2]
[380984435,1755918645035,-400.0,0.00013698,2]
[380984436,1755918645045,-400.0,0.00013698,2]
[380984437,1755918645054,-400.0,0.00013698,2]
[380984438,1755918645063,-546.92,0.00013698,2]
[380984439,1755918645074,-400.0,0.00013698,2]
[380984440,1755918645083,-467.88668929,0.00013698,2]
[380984441,1755918645092,-400.0,0.00013698,2]
[380984442,1755918645101,-538.96798904,0.00013698,2]
[380984443,1755918645110,-406.29,0.00013698,2]
[380984444,1755918645121,-400.0,0.00013698,2]
[380984445,1755918645131,-400.74171666,0.00013698,2]
[380984446,1755918645140,-400.0,0.00013698,2]
[380984447,1755918645149,-400.0,0.00013698,2]
[380984448,1755918645160,-419.94248229,0.00013698,2]
[380984449,1755918645169,-400.0,0.00013698,2]
[380984450,1755918645179,-400.0,0.00013698,2]
[380984451,1755918645188,-401.28852087,0.00013698,2]
[380984452,1755918645198,-400.0,0.00013698,2]
[380984453,1755918645207,-407.06,0.00013698,2]
[380984454,1755918645217,-400.0,0.00013698,2]
[380984455,1755918645226,-400.0,0.00013698,2]
[380984456,1755918645236,-400.0,0.00013698,2]
[380984457,1755918645246,-400.0,0.00013698,2]
[380984458,1755918645257,-411.6,0.00013698,2]
[380984459,1755918645266,-400.0,0.00013698,2]
[380984460,1755918645276,-400.0,0.00013698,2]
[380984461,1755918645286,-753.8,0.00013698,2]
[380984462,1755918645295,-400.0,0.00013698,2]
[380984463,1755918645305,-400.0,0.00013698,2]
[380984464,1755918645314,-400.0,0.00013698,2]
[380984465,1755918645323,-425.81062427,0.00013698,2]
[380984466,1755918645333,-401.35194902,0.00013698,2]
[380984467,1755918645342,-400.0,0.00013698,2]
[380984468,1755918645352,-461.44312884,0.00013698,2]
[380984469,1755918645361,-400.0,0.00013698,2]
[380984470,1755918645372,-300.0,0.00013698,2]
[380984471,1755918645382,-535.86,0.00013698,2]
[380984472,1755918645391,-400.0,0.00013698,2]
[380984473,1755918645400,-400.0,0.00013698,2]
[380984474,1755918645410,-588.98,0.00013698,2]
[380984475,1755918645420,-565.43,0.00013698,2]
[380984476,1755918645430,-402.37855004,0.00013698,2]
[380984477,1755918645444,-400.0,0.00013698,2]
[380984478,1755918645453,-564.25,0.00013698,2]
[380984479,1755918645462,-400.0,0.00013698,2]
[380984480,1755918645471,-400.0,0.00013698,2]
[380984481,1755918645482,-400.0,0.00013698,2]
[380984482,1755918645492,-400.0,0.00013698,2]
[380984483,1755918645501,-324.80658153,0.00013698,2]
[380984484,1755918645510,-400.0,0.00013698,2]
[380984485,1755918645520,-400.0,0.00013698,2]
[380984486,1755918645532,-400.0,0.00013698,2]
[380984487,1755918645542,-400.0,0.00013698,2]
[380984488,1755918645551,-400.0,0.00013698,2]
[380984489,1755918645561,-412.73065316,0.00013698,2]
[380984490,1755918645570,-400.0,0.00013698,2]
[380984491,1755918645579,-400.0,0.00013698,2]
[380984492,1755918645589,-400.0,0.00013698,2]
[380984493,1755918645598,-400.0,0.00013698,2]
[380984494,1755918645607,-400.0,0.00013698,2]
[380984495,1755918645617,-401.04082286,0.00013698,2]
[380984496,1755918645626,-400.0,0.00013698,2]
[380984497,1755918645636,-400.0,0.00013698,2]
[380984498,1755918645645,-518.22,0.00013698,2]
[380984499,1755918645655,-400.0,0.00013698,2]
[380984500,1755918645665,-400.0,0.00013698,2]
[380984501,1755918645675,-400.0,0.00013698,2]
[380984502,1755918645685,-900.72,0.00013698,2]
[380984503,1755918645694,-400.0,0.00013698,2]
[380984504,1755918645704,-400.0,0.00013698,2]
[380984505,1755918645714,-400.0,0.00013698,2]
[380984506,1755918645724,-400.0,0.00013698,2]
[380984507,1755918645734,-400.0,0.00013698,2]
[380984508,1755918645743,-481.7,0.00013698,2]
[380984509,1755918645752,-401.36878167,0.00013698,2]
[380984510,1755918645761,-400.0,0.00013698,2]
[380984511,1755918645771,-400.0,0.00013698,2]
[380984512,1755918645780,-509.05,0.00013698,2]
[380984513,1755918645789,-400.0,0.00013698,2]
[380984514,1755918645799,-401.04635497,0.00013698,2]
[380984515,1755918645809,-413.08,0.00013698,2]
[380984516,1755918645818,-413.99,0.00013698,2]
[380984517,1755918645828,-400.0,0.00013698,2]
[380984518,1755918645838,-402.5538804,0.00013698,2]
[380984519,1755918645847,-400.0,0.00013698,2]
[380984520,1755918645857,-355.42484898,0.00013698,2]
[380984521,1755918645867,-313.98544454,0.00013698,2]
[380984522,1755918645876,-400.0,0.00013698,2]
[380984523,1755918645885,-678.48,0.00013698,2]
[380984524,1755918645895,-400.0,0.00013698,2]
[380984525,1755918645905,-658.21,0.00013698,2]
[380984526,1755918645915,-400.0,0.00013698,2]
[380984527,1755918645926,-400.0,0.00013698,2]
[380984528,1755918645937,-400.0,0.00013698,2]
[380984529,1755918645947,-421.42,0.00013698,2]
[380984530,1755918645957,-401.53462726,0.00013698,2]
[380984531,1755918645967,-400.0,0.00013698,2]
[380984532,1755918645977,-400.0,0.00013698,2]
[380984533,1755918645987,-400.0,0.00013698,2]
[380984534,1755918645998,-401.64121952,0.00013698,2]
[380984535,1755918646008,-443.63,0.00013698,2]
[380984536,1755918646021,-400.0,0.00013698,2]
[380984538,1755918646040,-401.77335521,0.00013698,2]
[380984539,1755918646062,-400.0,0.00013698,2]
[380984540,1755918646084,-502.60787391,0.00013698,2]
[380984541,1755918646107,-400.0,0.00013698,2]
[380984542,1755918646122,-401.62607665,0.00013698,2]
[380984543,1755918646132,-400.0,0.00013698,2]
[380984544,1755918646142,-864.52,0.00013698,2]
[380984545,1755918646153,-400.0,0.00013698,2]
[380984546,1755918646163,-806.95,0.00013698,2]
[380984547,1755918646173,-400.0,0.00013698,2]
[380984548,1755918646183,-640.87,0.00013698,2]
[380984549,1755918646192,-555.58,0.00013698,2]
[380984550,1755918646202,-400.0,0.00013698,2]
[380984551,1755918646211,-400.0,0.00013698,2]
[380984552,1755918646221,-400.0,0.00013698,2]
[380984553,1755918646231,-400.0,0.00013698,2]
[380984554,1755918646241,-676.65,0.00013698,2]
[380984555,1755918646251,-400.0,0.00013698,2]
[380984556,1755918646260,-400.0,0.00013698,2]
[380984557,1755918646270,-400.0,0.00013698,2]
[380984558,1755918646279,-400.0,0.00013698,2]
[380984559,1755918646289,-400.0,0.00013698,2]
[380984560,1755918646299,-415.75541122,0.00013698,2]
[380984561,1755918646308,-400.0,0.00013698,2]
[380984562,1755918646318,-400.0,0.00013698,2]
[380984563,1755918646327,-482.01,0.00013698,2]
[380984564,1755918646337,-400.0,0.00013698,2]
[380984565,1755918646347,-400.0,0.00013698,2]
[380984566,1755918646357,-400.0,0.00013698,2]
[380984567,1755918646367,-799.46,0.00013698,2]
[380984568,1755918646377,-400.0,0.00013698,2]
[380984569,1755918646386,-559.64,0.00013698,2]
[380984570,1755918646396,-400.0,0.00013698,2]
[380984571,1755918646405,-562.88,0.00013698,2]
[380984572,1755918646415,-509.23,0.00013698,2]
[380984573,1755918646425,-400.0,0.00013698,2]
[380984574,1755918646435,-585.64,0.00013698,2]
[380984575,1755918646447,-400.0,0.00013698,2]
[380984576,1755918646458,-402.93363478,0.00013698,2]
[380984577,1755918646468,-400.0,0.00013698,2]
[380984578,1755918646477,-400.0,0.00013698,2]
[380984579,1755918646487,-400.0,0.00013698,2]
[380984580,1755918646497,-400.0,0.00013698,2]
[380984581,1755918646507,-398.36217642,0.00013698,2]
[380984582,1755918646516,-400.0,0.00013698,2]
[380984583,1755918646528,-400.0,0.00013698,2]
[380984584,1755918646537,-400.0,0.00013698,2]
[380984585,1755918646547,-400.0,0.00013698,2]
[380984586,1755918646556,-400.0,0.00013698,2]
[380984587,1755918646566,-400.0,0.00013698,2]
[380984588,1755918646576,-414.85,0.00013698,2]
[380984589,1755918646586,-771.58,0.00013698,2]
[380984590,1755918646596,-402.22042498,0.00013698,2]
[380984591,1755918646610,-400.0,0.00013698,2]
[380984592,1755918646621,-410.49,0.00013698,2]
[380984594,1755918646631,-402.1349608,0.00013698,2]
[380984596,1755918646640,-400.0,0.00013698,2]
[380984597,1755918646650,-400.0,0.00013698,2]
[380984598,1755918646659,-400.0,0.00013698,2]
[380984599,1755918646671,-448.63,0.00013698,2]
[380984600,1755918646681,-400.0,0.00013698,2]
[380984602,1755918646691,-418.83,0.00013698,2]
[380984604,1755918646700,-405.03295601,0.00013698,2]
[380984605,1755918646711,-400.0,0.00013698,2]
[380984606,1755918646974,-689.19,0.00013698,2]
[380984607,1755918646996,-400.0,0.00013698,2]
[380984608,1755918647006,-400.0,0.00013698,2]
[380984609,1755918647015,-400.0,0.00013698,2]
[380984610,1755918647025,-1001.7,0.00013698,2]
[380984611,1755918647034,-400.0,0.00013698,2]
[380984612,1755918647044,-400.0,0.00013698,2]
[380984613,1755918647055,-400.0,0.00013698,2]
[380984614,1755918647065,-400.0,0.00013698,2]
[380984615,1755918647074,-402.20780042,0.00013698,2]
[380984616,1755918647083,-400.0,0.00013698,2]
[380984617,1755918647095,-775.01,0.00013698,2]
[380984618,1755918647105,-620.0,0.00013698,2]
[380984619,1755918647114,-400.0,0.00013698,2]
[380984620,1755918647124,-400.0,0.00013698,2]
[380984621,1755918647133,-400.0,0.00013698,2]
[380984622,1755918647143,-400.0,0.00013698,2]
[380984623,1755918647153,-774.46,0.00013698,2]
[380984624,1755918647162,-400.0,0.00013698,2]
[380984625,1755918647171,-664.85,0.00013698,2]
[380984626,1755918647181,-400.0,0.00013698,2]
[380984627,1755918647190,-400.0,0.00013698,2]
[380984628,1755918647201,-400.0,0.00013698,2]
[380984629,1755918647210,-400.0,0.00013698,2]
[380984630,1755918647221,-669.69,0.00013698,2]
[380984631,1755918647230,-401.36913267,0.00013698,2]
[380984632,1755918647240,-1020.89,0.00013698,2]
[380984633,1755918647249,-400.0,0.00013698,2]
[380984634,1755918647259,-400.0,0.00013698,2]
[380984635,1755918647268,-510.38376983,0.00013698,2]
[380984636,1755918647277,-400.0,0.00013698,2]
[380984637,1755918647287,-400.0,0.00013698,2]
[380984638,1755918647297,-458.89,0.00013698,2]
[380984639,1755918647307,-400.0,0.00013698,2]
[380984640,1755918647316,-402.50966239,0.00013698,2]
[380984641,1755918647325,-401.76906955,0.00013698,2]
[380984642,1755918647334,-400.0,0.00013698,2]
[380984643,1755918647344,-400.0,0.00013698,2]
[380984644,1755918647354,-1009.14,0.00013698,2]
[380984645,1755918647363,-881.54,0.00013698,2]
[380984646,1755918647374,-400.0,0.00013698,2]
[380984647,1755918647384,-400.0,0.00013698,2]
[380984648,1755918647394,-401.21868407,0.00013698,2]
[380984649,1755918647403,-400.0,0.00013698,2]
[380984650,1755918647413,-400.0,0.00013698,2]
[380984651,1755918647423,-400.0,0.00013698,2]
[380984652,1755918647434,-400.0,0.00013698,2]
[380984653,1755918647449,-400.0,0.00013698,2]
[380984654,1755918647462,-400.0,0.00013698,2]
[380984655,1755918647471,-400.0,0.00013698,2]
[380984656,1755918647482,-400.0,0.00013698,2]
[380984657,1755918647491,-664.72,0.00013698,2]
[380984658,1755918647501,-400.0,0.00013698,2]
[380984659,1755918647511,-463.18,0.00013698,2]
[380984660,1755918647523,-573.16,0.00013698,2]
[380984661,1755918647533,-931.49,0.00013698,2]
[380984662,1755918647543,-451.36,0.00013698,2]
[380984663,1755918647553,-400.0,0.00013698,2]
[380984664,1755918647562,-400.0,0.00013698,2]
[380984665,1755918647572,-400.0,0.00013698,2]
[380984666,1755918647582,-440.11,0.00013698,2]
[380984667,1755918647592,-466.49,0.00013698,2]
[380984668,1755918647602,-400.0,0.00013698,2]
[380984669,1755918647613,-180.85462609,0.00013698,2]
[380984670,1755918647623,-563.71,0.00013698,2]
[380984671,1755918647633,-2296.87,0.00013698,2]
[380984672,1755918647643,-400.0,0.00013698,2]
[380984673,1755918647653,-405.51,0.00013698,2]
[380984674,1755918647662,-400.0,0.00013698,2]
[380984675,1755918647672,-402.31893068,0.00013698,2]
[380984676,1755918647682,-707.23,0.00013698,2]
[380984677,1755918647692,-400.0,0.00013698,2]
[380984678,1755918647701,-400.0,0.00013698,2]
[380984679,1755918647711,-400.0,0.00013698,2]
[380984680,1755918647721,-400.0,0.00013698,2]
[380984681,1755918647730,-475.16,0.00013698,2]
[380984682,1755918647740,-666.69,0.00013698,2]
[380984683,1755918647749,-400.0,0.00013698,2]
[380984684,1755918647759,-488.41,0.00013698,2]
[380984685,1755918647769,-624.58,0.00013698,2]
[380984686,1755918647778,-854.58,0.00013698,2]
[380984687,1755918647788,-383.59009912,0.00013698,2]
[380984688,1755918647797,-629.14,0.00013698,2]
[380984689,1755918647806,-400.0,0.00013698,2]
[380984690,1755918647815,-400.0,0.00013698,2]
[380984691,1755918647825,-786.08,0.00013698,2]
[380984692,1755918647835,-792.71,0.00013698,2]
[380984693,1755918647845,-400.0,0.00013698,2]
[380984694,1755918647855,-400.98356617,0.00013698,2]
[380984695,1755918647866,-690.06,0.00013698,2]
[380984696,1755918647876,-400.0,0.00013698,2]
[380984697,1755918647885,-401.33347911,0.00013698,2]
[380984698,1755918647895,-400.0,0.00013698,2]
[380984699,1755918647905,-400.0,0.00013698,2]
[380984700,1755918647915,-555.27,0.00013698,2]
[380984701,1755918647925,-425.39,0.00013698,2]
[380984702,1755918647935,-400.0,0.00013698,2]
[380984703,1755918647944,-400.0,0.00013698,2]
[380984704,1755918647954,-400.0,0.00013698,2]
[380984705,1755918647963,-502.83,0.00013698,2]
[380984706,1755918647975,-400.0,0.00013698,2]
[380984707,1755918647985,-400.0,0.00013698,2]
[380984708,1755918647996,-400.0,0.00013698,2]
[380984709,1755918648007,-401.9491811,0.00013698,2]
[380984710,1755918648016,-545.47,0.00013698,2]
[380984711,1755918648026,-400.0,0.00013698,2]
[380984712,1755918648036,-400.0,0.00013698,2]
[380984713,1755918648046,-467.67,0.00013698,2]
[380984714,1755918648056,-400.0,0.00013698,2]
[380984715,1755918648066,-400.0,0.00013698,2]
[380984716,1755918648076,-400.0,0.00013698,2]
[380984717,1755918648086,-402.86695691,0.00013698,2]
[380984718,1755918648096,-400.0,0.00013698,2]
[380984719,1755918648106,-400.0,0.00013698,2]
[380984720,1755918648117,-31.51442942,0.00013698,2]
[380984721,1755918648998,-598.63557058,0.00013698,2]
[380984722,1755918649008,-563.96,0.00013698,2]
[380984723,1755918649018,-400.0,0.00013698,2]
[380984724,1755918649028,-400.0,0.00013698,2]
[380984725,1755918649037,-400.0,0.00013698,2]
[380984726,1755918649047,-400.0,0.00013698,2]
[380984727,1755918649057,-766.22,0.00013698,2]
[380984728,1755918649067,-451.08,0.00013698,2]
[380984729,1755918649077,-3046.99,0.00013698,2]
[380984730,1755918649179,-400.0,0.00013698,2]
[380984731,1755918649189,-400.0,0.00013698,2]
[380984732,1755918649199,-402.63329117,0.00013698,2]
[380984733,1755918649208,-400.0,0.00013698,2]
[380984734,1755918649219,-400.0,0.00013698,2]
[380984735,1755918649229,-744.27,0.00013698,2]
[380984736,1755918649239,-401.41986197,0.00013698,2]
[380984737,1755918649248,-400.0,0.00013698,2]
[380984738,1755918649258,-643.58,0.00013698,2]
[380984739,1755918649268,-400.0,0.00013698,2]
[380984740,1755918649277,-400.0,0.00013698,2]
[380984741,1755918649287,-409.61,0.00013698,2]
[380984742,1755918649296,-400.0,0.00013698,2]
[380984743,1755918649305,-445.1,0.00013698,2]
[380984744,1755918649315,-567.41,0.00013698,2]
[380984745,1755918649325,-400.0,0.00013698,2]
[380984746,1755918649334,-909.82,0.00013698,2]
[380984747,1755918649343,-400.0,0.00013698,2]
[380984748,1755918649352,-479.94,0.00013698,2]
[380984749,1755918649362,-400.0,0.00013698,2]
[380984750,1755918649373,-401.97726713,0.00013698,2]
[380984751,1755918649387,-400.0,0.00013698,2]
[380984752,1755918649396,-921.46,0.00013698,2]
[380984753,1755918649406,-253.5078887,0.00013698,2]